Cogmind - Beta 16 --- EXPLORER MODE // 2025.11.14 @ 13:15:11 Player: K.K.Y. Result: Destroyed by Autobeam Turret with Autobeam Performance ------------- Evolutions (0) 0 Regions Visited (2) 400 Robots Destroyed (33) 165 Value Destroyed (1112) 1112 Prototype IDs (12) 240 Alien Tech Used (0) 0 Bonus (0) 0 TOTAL SCORE: 1917 Bonus ------- None Cogmind --------- Core Integrity 0/250 Matter 144/300 Energy 250/250 System Corruption 0% Temperature Cool (18) Movement Treading (160) Location -10/Subcaves Parts ------- > --- POWER (1+1) ------ Ion Engine > --- PROPULSION (3+1) - Light Treads Spiked Treads > --- UTILITY (2+1) ---- Large Storage Unit Rainbow Chip > --- WEAPON (2+1) ----- Makeshift Shrapnel Gun (+) Battle Cannon Battle Cannon > --- INVENTORY (15) --- Makeshift Power Source Terrain Scanner Makeshift Terrain Scan Processor Scrap Shield Riot Gun Beam Rifle Particle Gun Subdweller Laser Beam Cannon Battle Rifle Light Cannon Battle Cannon Grenade Launcher Makeshift Axe Peak State ------------ > --- POWER ------------ Ion Engine > --- PROPULSION ------- Light Treads Light Treads Spiked Treads > --- UTILITY ---------- Large Storage Unit Rainbow Chip > --- WEAPON ----------- Makeshift Shrapnel Gun Light Cannon Battle Cannon > --- INVENTORY -------- Makeshift Power Source Terrain Scanner Makeshift Terrain Scan Processor Scrap Shield Riot Gun Beam Rifle Particle Gun Subdweller Laser Beam Cannon Battle Rifle Light Cannon Battle Cannon Grenade Launcher Makeshift Axe [Rating: 29] Favorites ----------- Power Ion Engine Engine Ion Engine Propulsion Light Treads Treads Light Treads Utility Large Storage Unit Device Terrain Scanner Storage Large Storage Unit Processor Rainbow Chip Protection Light Armor Plating Weapon Light Cannon Ballistic Gun Assault Rifle Ballistic Cannon Light Cannon Special Weapon Mining Laser Build | -11 -10 -10 ------- Run | Yrd Mat Sub Slots Evolved 1 | . 1 . Power . | . . . Propulsion 1 | . 1 . Utility . | . . . Weapon . | . . . Parts Attached 17 | 6 4 7 Power 1 | 1 . . Engine 1 | 1 . . Core . | . . . Reactor . | . . . Propulsion 5 | 2 1 2 Treads 5 | 2 1 2 Leg . | . . . Wheel . | . . . Hover . | . . . Flight . | . . . Utility 5 | 3 1 1 Device 1 | 1 . . Storage 2 | 1 1 . Processor 1 | . . 1 Hackware . | . . . Protection 1 | 1 . . Artifact . | . . . Weapon 6 | . 2 4 Energy Gun . | . . . Energy Cannon . | . . . Ballistic Gun 2 | . 1 1 Ballistic Cannon 3 | . 1 2 Launcher . | . . . Special Weapon 1 | . . 1 Impact Weapon . | . . . Slashing Weapon . | . . . Piercing Weapon . | . . . Special Melee Weapon . | . . . Unidentified Prototypes . | . . . Parts Lost 3 | . . 3 Power . | . . . Propulsion 1 | . . 1 Utility 1 | . . 1 Weapon 1 | . . 1 Highest Loss Streak 1 | . . 1 To Critical Strikes . | . . . Average Backups 11 | 1 4 13 Power . | . . . Propulsion . | . . . Utility 2 | 1 1 2 Weapon 7 | . 3 8 Tool/Special . | . . . Unused Backups 14 | . . 14 Power 1 | . . 1 Propulsion . | . . . Utility 3 | . . 3 Weapon 10 | . . 10 Tool/Special . | . . . Average Slot Usage (%) 79 | . 90 76 Engine 10 | . 12 9 Treads 29 | . 34 28 Storage 10 | . 12 9 Processor 3 | . . 4 Protection 3 | . 12 1 Ballistic Gun 5 | . 10 4 Ballistic Cannon 13 | . 7 14 Special Weapon 1 | . . 1 Peak Build Rating 29 | 5 8 29 Average Rating 17 | 3 7 20 On Entrance 4 | . 5 8 Avg Prop Armor Cover (%) . | . . . Naked Turns . | . . . Heaviest Build 33 | 18 33 33 Greatest Support 60 | 40 60 60 Greatest Overweight (x) 5 | . 5 . Average Overweight (x) . | . . . Largest Inventory Capacity 15 | 10 15 15 Average Capacity 14 | 8 12 15 Most Carried 15 | 5 6 15 Average Carried 11 | 1 4 13 Final Capacity 15 | 10 15 15 Final Carried 15 | 2 5 15 Class Distribution -------------------- 74% | Hacker-Mutant 25% | Hacker-Gunner Dominant Class ---------------- Hacker-Mutant | -10/Materials Hacker-Mutant | -10/Subcaves Resources | -11 -10 -10 ----------- Run | Yrd Mat Sub Matter Collected 1423 | 240 221 962 Remotely . | . . . Salvage Created 791 | . 290 501 Parts 40 | . 14 26 Haulers Intercepted 1 | . 1 . Recyclers Shooed 3 | . 3 . Parts Field Recycled . | . . . Retrieved Matter . | . . . Parts Self-Destructed . | . . . Prevented . | . . . Parts Restored . | . . . Kills | -11 -10 -10 ------- Run | Yrd Mat Sub Combat Hostiles Destroyed 29 | . 6 23 Guns 10 | . 2 8 Cannons 19 | . 4 15 Classes Destroyed 7 | . 3 4 Hauler 1 | . 1 . Turret 1 | . . 1 Watcher 2 | . 2 . Swarmer 4 | . . 4 Grunt 6 | . 6 . Sentry 1 | . . 1 Subdweller 18 | . . 18 Best Kill Streak 6 | . 6 6 Combat Bots Only 5 | . 4 5 Max Kills in Single Turn 2 | . 1 2 Gunslinging . | . . . Exploded . | . . . Melee . | . . . Uniques/NPCs Destroyed . | . . . Combat | -11 -10 -10 -------- Run | Yrd Mat Sub Hostile Shots Fired 174 | . 34 140 Missed 52 | . 12 40 Hits 122 | . 22 100 Projectile 122 | . 22 100 Critical Strikes 3 | . 1 2 Damage Taken 1427 | . 161 1266 Core 251 | . 13 238 Absorbed by Shields . | . . . Ignored by Resistances 810 | . 102 708 Core Remaining (%) 100 | 100 . . Volleys Fired 147 | . 26 121 Largest 3 | . 2 3 Hottest 130 | . 50 130 Shots Fired 293 | . 47 246 Gun 77 | . 26 51 Cannon 205 | . 21 184 Launcher . | . . . Special 11 | . . 11 Kinetic 282 | . 47 235 Thermal 11 | . . 11 Explosive . | . . . Electromagnetic . | . . . Robot Hit Streak 53 | . 17 53 Robot Miss Streak 2 | . 2 2 Penetration Max . | . . . Secondary Targets . | . . . Shots Hit Robots 181 | . 40 141 Core Hits 63 | . 17 46 Critical Kills 1 | . . 1 Critical Parts Destroyed . | . . . Critical Strikes 7 | . 2 5 Destroy 1 | . . 1 Blast 6 | . 2 4 Melee Attacks . | . . . Impact . | . . . Slashing . | . . . Piercing . | . . . Sneak Attacks . | . . . Combat Hostiles . | . . . Follow-up Attacks . | . . . Damage Inflicted 3170 | . 585 2585 Guns 1115 | . 303 812 Cannons 1958 | . 281 1677 Explosions . | . . . Melee . | . . . Ramming 1 | . 1 . Kinetic 3073 | . 584 2489 Thermal 96 | . . 96 Explosive . | . . . Electromagnetic . | . . . Impact . | . . . Slashing . | . . . Piercing . | . . . Highest Corruption . | . . . Average Corruption . | . . . Corruption Purged . | . . . Corruption Blocked . | . . . Overload Shots . | . . . Overflow Damage . | . . . Projectiles . | . . . Explosions . | . . . Melee . | . . . Knockbacks 12 | . 3 9 Impact . | . . . Kinetic 12 | . 3 9 Secondary . | . . . Self-Inflicted Damage . | . . . Shots . | . . . Rammed 1 | . 1 . Targets Rammed 1 | . 1 . Kicked . | . . . Crushed . | . . . Highest Temperature 165 | . 41 165 Average Temperature 26 | . 16 62 Received Heat Transfer 690 | . 168 522 Siege Activations . | . . . Martial Activations . | . . . Shielding Activations . | . . . Robots Disrupted . | . . . Combat Hostiles . | . . . Robots Corrupted . | . . . Combat Hostiles . | . . . Parts Fried . | . . . Impact Corruptions . | . . . Robots Melted . | . . . Combat Hostiles . | . . . Parts Melted 1 | . . 1 Heat Transferred 200 | . . 200 Parts Sabotaged . | . . . Parts Stolen . | . . . Parts Stripped . | . . . Power Chain Reactions . | . . . Alert | -11 -10 -10 ------- Run | Yrd Mat Sub Maximum Alert Level . | . . . Low Security (%) 100 | 100 100 . Level 1 . | . . . Level 2 . | . . . Level 3 . | . . . Level 4 . | . . . Level 5 . | . . . High Security . | . . . Max Security . | . . . Peak Influence 114 | . 114 . Initial . | . . . Average 11 | . 12 . Influence Increases 351 | . 201 150 Destroy 0b10 Robot/C 240 | . 120 120 Destroy 0b10 Robot/NC 15 | . 15 . Destroy Leader 36 | . 36 . Lose Combat Pursuer 60 | . 30 30 Influence Decreases 251 | . 201 50 Time Decay 251 | . 201 50 Squads Dispatched . | . . . Investigation . | . . . Extermination . | . . . Reinforcement . | . . . Assault . | . . . Garrison . | . . . Intercept . | . . . Searches Triggered . | . . . Construction Impeded . | . . . Haulers Reinforced . | . . . Active Scanning Responses . | . . . Cargo Convoy Interrupts . | . . . Stealth | -11 -10 -10 --------- Run | Yrd Mat Sub Distress Signals 1 | . 1 . Communications Jammed . | . . . Distress Signals . | . . . Times Spotted 38 | . 11 27 Peak Tracking Total 6 | . 6 6 Tactical Retreats 2 | . 1 1 Traps | -11 -10 -10 ------- Run | Yrd Mat Sub Traps Triggered 4 | . 2 2 Indirectly . | . . . Trap Hack Attempts . | . . . Triggered . | . . . Disarmed . | . . . Reprogrammed . | . . . Reused . | . . . Traps Extracted . | . . . Installed . | . . . Triggered . | . . . Machines | -11 -10 -10 ---------- Run | Yrd Mat Sub Machines Disabled 2 | . . 2 Max in Single Turn 1 | . . 1 Machines Repaired . | . . . Machines Dismantled . | . . . Machines Sabotaged . | . . . Overloaded Fab Kills . | . . . Hacking | -11 -10 -10 --------- Run | Yrd Mat Sub Machines Accessed 2 | . . 2 Terminals . | . . . Fabricators . | . . . Repair Stations . | . . . Recycling Units . | . . . Scanalyzers . | . . . Garrison Access . | . . . Total Hacks 5 | . . 5 Successful 5 | . . 5 Failed . | . . . Catastrophic . | . . . Database Lockouts . | . . . Manual . | . . . Terminals . | . . . Fabricators . | . . . Repair Stations . | . . . Recycling Units . | . . . Scanalyzers . | . . . Garrison Access . | . . . Terminal Hacks 5 | . . 5 Record 4 | . . 4 Proto ID Catalog 1 | . . 1 Fabricator Hacks . | . . . Repair Station Hacks . | . . . Recycling Unit Hacks . | . . . Scanalyzer . | . . . Garrison Access Hacks . | . . . Unauthorized Hacks . | . . . Terminals . | . . . Fabricators . | . . . Repair Stations . | . . . Recycling Units . | . . . Scanalyzers . | . . . Garrison Access . | . . . Data Cores Recovered . | . . . Used . | . . . Hacking Detections . | . . . Full Trace Events . | . . . Feedback Events . | . . . Feedback Blocked . | . . . Robot Schematics Acquired . | . . . Robots Built . | . . . Authchips . | . . . Time . | . . . Total Robot Build Rating . | . . . Part Schematics Acquired . | . . . Parts Built . | . . . Authchips . | . . . Time . | . . . Total Part Build Rating . | . . . Part Studies Acquired . | . . . Parts Repaired . | . . . Time . | . . . Parts Recycled . | . . . Recycled Matter . | . . . Retrieved Matter . | . . . Retrieved Components . | . . . Parts Scanalyzed . | . . . Part Schematics Acquired . | . . . Parts Damaged . | . . . Bothacking | -11 -10 -10 ------------ Run | Yrd Mat Sub Used RIF Installer . | . . . Robots Hacked . | . . . Non-combat . | . . . Combat . | . . . Robot Hacks Applied . | . . . Relay Couplers Released . | . . . Fabnet Peak Effective % . | . . . Robots Rewired . | . . . Allies Hacked . | . . . Hacks Repelled . | . . . Allies | -11 -10 -10 -------- Run | Yrd Mat Sub Total Allies . | . . . Largest Group . | . . . Highest-Rated Group . | . . . Highest-Rated Ally . | . . . Total Orders . | . . . Ally Attacks . | . . . Total Damage . | . . . Kills . | . . . Allies Corrupted . | . . . Allies Melted . | . . . Intel | -11 -10 -10 ------- Run | Yrd Mat Sub Active Infowar (turns) 5 | 5 . . Terrain 5 | 5 . . Robot Analysis Total . | . . . Derelict Logs Recovered 2 | . . 2 Drone Launches . | . . . Drone Recoveries . | . . . Exploration | -11 -10 -10 ------------- Run | Yrd Mat Sub Turns Passed 5463 | 70 1009 4384 Spaces Moved 2780 | 52 515 2213 Core 29 | 23 6 . Treads 2751 | 29 509 2213 Legs . | . . . Wheels . | . . . Hover . | . . . Flight . | . . . Fastest Speed 50 | 50 160 160 Average Speed 159 | 111 161 160 Slowest Speed 300 | 160 300 160 Overloaded Moves . | . . . Propulsion Burnouts . | . . . Robots Hopped . | . . . Potential Cave-ins . | . . . Cave-ins Triggered . | . . . Exploration Rate (%) 60 | 4 80 96 Regions Visited 2 Branch Regions 1 Pre-discovered Areas 1 | . . 1 Known Exits Taken 2 | 1 1 . Unknown Exits Taken . | . . . Scrap Searched 15 | . . 15 Spaces Dug . | . . . Terrain Destroyed 2 | . . 2 Melee . | . . . Projectile 2 | . . 2 AOE . | . . . Terrain Rammed . | . . . Walls Destroyed . | . . . Machines Disabled . | . . . Actions | -11 -10 -10 --------- Run | Yrd Mat Sub Total 3518 | 64 644 2810 Wait 530 | . 85 445 Move 2778 | 51 514 2213 Hop . | . . . Pick Up 31 | 6 10 15 Fast Attach 2 | 1 . 1 Attach 14 | 5 6 3 Detach 2 | 1 . 1 Swap 5 | . 1 4 Drop 8 | . 1 7 Fire 147 | . 26 121 Melee . | . . . Ram . | . . . Kick . | . . . Crush 1 | . 1 . Escape Stasis . | . . . Rewire . | . . . Trap . | . . . Miscellaneous . | . . . Route ------- -11/Scrapyard -10/Materials (discovered 5 exits: *Mat x3 / *Min / *Sub) -10/Subcaves (discovered 3 exits: *Mat x2 / *Rec) History --------- Turn | Location | Event 11 | -11/Scrapyard | Identified exit to Materials 11 | -11/Scrapyard | Discovered exit to Materials (range 16) 71 | -11/Scrapyard | Entered Materials 71 | -10/Materials | Evolved 1 slot: Propulsion x1 274 | -10/Materials | Identified exit to Materials 274 | -10/Materials | Discovered exit to Materials (range 6) 300 | -10/Materials | Build established: Hacker-Mutant 419 | -10/Materials | Identified exit to Mines 419 | -10/Materials | Discovered exit to Mines (range 9) 674 | -10/Materials | Discovered exit to Materials (range 4) 902 | -10/Materials | Discovered exit to Materials (range 13) 1069 | -10/Materials | Identified exit to Subcaves 1069 | -10/Materials | Discovered exit to Subcaves (range 8) 1080 | -10/Materials | Entered Subcaves 1081 | -10/Subcaves | Approached by a straggling Scientist 1403 | -10/Subcaves | Shifting Twisted Machinery released Sub. Power Source 1625 | -10/Subcaves | Identified exit to Materials 1625 | -10/Subcaves | Discovered exit to Materials (range 10) 1737 | -10/Subcaves | Shifting Twisted Machinery released Riot Gun 1962 | -10/Subcaves | Visited Clippyterm 1966 | -10/Subcaves | Learned Factory emergency access door positions 1966 | -10/Subcaves | Learned 40 Factory zone layouts 2064 | -10/Subcaves | Learned location of Zion (-7) 2363 | -10/Subcaves | Learned Materials emergency access door positions 2375 | -10/Subcaves | A swath of the cavern ceiling suddenly collapsed 2636 | -10/Subcaves | Core integrity fell below 50% 2792 | -10/Subcaves | Visited 4L-MR0's lab 2815 | -10/Subcaves | Found Rainbow Chip 2817 | -10/Subcaves | Attached Rainbow Chip, gained temporary slots: Power, Propulsion, Utility, Weapon 2871 | -10/Subcaves | Discovered exit to Materials (range 13) 2993 | -10/Subcaves | Shifting Twisted Machinery released Sub. Monowheel 3068 | -10/Subcaves | Shifting Twisted Machinery released Flamer 4016 | -10/Subcaves | A swath of the cavern ceiling suddenly collapsed 4134 | -10/Subcaves | Ambushed by Subdwellers from Twisted Machinery 4356 | -10/Subcaves | Build established: Hacker-Gunner 4769 | -10/Subcaves | Disturbed a concealed Subdweller 5074 | -10/Subcaves | Disturbed a concealed Subdweller 5075 | -10/Subcaves | Disturbed a concealed Subdweller 5080 | -10/Subcaves | Core integrity fell below 20% 5440 | -10/Subcaves | Ambushed by Subdweller buried in earth 5456 | -10/Subcaves | Identified exit to Recycling 5456 | -10/Subcaves | Discovered exit to Recycling (range 12) 5464 | -10/Subcaves | Destroyed by Autobeam Turret with Autobeam Last Messages --------------- 05083_ KI-H8K(R) destroyed. 05093_ Acquired 42 matter. 05095_ Acquired 4 matter. 05099_ Acquired 1 matter. 05104_ DM-8US(R) affixes Scrap Shield Fragment to Scrap Shield. 05111_ DM-8US(R) destroyed. 05119_ Acquired 2 matter. 05120_ Acquired 1 matter. 05123_ Acquired 3 matter. 05127_ Acquired 10 matter. 05436_ S-10 Pest destroyed. 05441_ SX-W9F(R): "THANKSYOU!" 05443_ S-10 Pest destroyed. 05446_ SX-W9F(R) knocked back. 05449_ SX-W9F(R) destroyed. 05456_ Acquired 16 matter. 05456_ EXIT=FOUND: RECYCLING 05461_ Autobeam Turret destroyed. 05461_ Machine disabled. Map ----- +----------------------------------------------------+ | ???## #????#####???????????????????## | | ????## #?????????????????????????????? | | ?????# #?????????????????????????????? | | ?????## ##?????????????????????????????? | | #####?# ##??????????????????????????????? | | # #?## # ##???????????????????????????????? | | ??### # ##????????????????????????????????? | | #???## ####?????????????????????????????????? | | #???# #???????????????????????????????????? | | #??## ##???????????????????????????????????? | | # " #### #????????????????????????????????????? | | # """" ##???????????????????????????????????? | | # ##??????????????????????????????????? | | " #### ##?????????????????????????????????? | | """"""""#??# #?????????????????????????????????? | | """ ##?##" #######???????????????????????????? | | "##### # # ##??????????????????????????? | | ## # #??????????########????????? | | """""""" ##?????????# # #????????? | | " """""" ## ##?###????# #????????? | | " # "########### ### ###?## ##???????? | | # """ ######?????????## ###] ### ## ##??????? | | # " "##?????????????# !#|## " ##### #??????? | | """###???????????###[%######??# ##??????? | | """" #??#" #####=%% #?????# #???????? | | """###??#""t [@#%###????### ##???????? | | " ###?#>% % =%#%##???#### # #????????? | | #?##" %#? #???## # ##???????? | | # ##??#" ###?###???#[!=#### #???##??? | | ### ##???#" ???????????##[% #?## #### ## # | | ??## #????#""" ????????????# #??## * # | | ??## ### #???####?????????????## #???## % ## | | ??# #####???# #######???###?## #???# #& ## #? | | ??# ######## # ##### ### ###?####### # | | ??## ## ## ### ##??????# # | | ??# # # # ## ### ##??????? | | ??### ######### ### #????????# | | ????##### ##??????## # ### ##??????## | | ??????### ##???????# # ##?## ####?### | | ??????# ##????????# ###???# ## ### "" | | ??????# #?????????# ##?????## " ## "" | | ??????# #?????????# #???????## """ " | | ??????# #?????????# #???????## """"""" | | ??????# #?????????## ####????????# ######" | | ??????#######??????????#####????????? ##????## | | ???????????????????????????????????? ##??????# | | ??????????????????????????????????? #???????" | | ??????????????????????????????????########??????## | | ?????????????????????????????????????????????????# | | ?????????????????????????????????????????????????? | +----------------------------------------------------+ Best States ------------- Heat Dissipation 25 Energy Generation 10 Energy Capacity 250 Matter Stores 300 Matter Capacity 300 Sight Range 16 Terrain Scan Range 14 Terrain Scan Density 10 Armor Coverage 150 Resistance: KI 35 Resistance: TH 35 Resistance: EX 35 Resistance: EM 35 Resistance: I 35 Resistance: S 35 Resistance: P 35 Evasion (%) 50 Recoil Reduction 3 Offensive Hacking 20 Item Schematics ----------------- None Robot Schematics ------------------ None Fabricated ------------ Nothing Repaired ---------- Nothing Studied --------- None Alien Tech Used ----------------- None Achievements -------------- None Challenges ------------ None Game ------ Seed ArmageddonGravjetAutobeam Manual? 0 Play Time 00:22:50 Cumulative 92.4 hours Start 2025.11.14 @ 12:40:27 End 2025.11.14 @ 13:15:11 Sessions 1 Manual Loads 0 Difficulty Explorer Special Mode None Game No. 104 Rogue 0 Adventurer 0 Explorer 104 Win Type - Total 0 Types 0/0/0/0/0/0/0/0/0/0 Lore% 59 Gallery% 56 Achievement% 44 Wizard Run 0 Options --------- Layout 1 ASCII 0 Keyboard 0 Movement Mouse Keybinds 0 Fullscreen 1 Font 24/Smallcaps Map View 50x35 Zoom Use 0% Tactical HUD 1 Map Filters NONE Filters NONE Steam 1 RUN: 17b027fa-5199-4c29-92b0-43306ffb5803